Cogmind - Beta 13 @@@ ROGUE MODE // 2024.05.12 @ 03:30:19 Player: MLGOON Result: Destroyed by S-27 Virus with Autogun Performance ------------- Evolutions (4) 2000 Regions Visited (7) 1400 Robots Destroyed (71) 355 Value Destroyed (2226) 2226 Prototype IDs (5) 100 Alien Tech Used (0) 0 Bonus (124) 124 TOTAL SCORE: 6205 Bonus ------- High Alert Combat Kills 124 Cogmind --------- Core Integrity 0/850 Matter 300/300 Energy 49/100 System Corruption 6% Temperature Cool (0) Movement Core (50) Location -6/Factory Parts ------- > --- POWER (3) -------- (None) > --- PROPULSION (4) --- (None) > --- UTILITY (4) ------ Microactuators Hacking Suite > --- WEAPON (4) ------- (None) > --- INVENTORY (5) ---- (None) Peak State ------------ > --- POWER ------------ Nuclear Core Micro Nuclear Core Micro Nuclear Core > --- PROPULSION ------- Light Treads Light Treads Light Treads Medium Treads > --- UTILITY ---------- Small Storage Unit Transmission Jammer Improved Medium Armor Plating Improved Medium Armor Plating > --- WEAPON ----------- Precision Assault Rifle Precision Assault Rifle Advanced Assault Cannon Heavy Flak Cannon > --- INVENTORY -------- Light Ion Engine Heavy Ion Engine Deuterium Engine Light Treads Aluminum Leg Hacking Suite Gauss Cannon [Rating: 51] Favorites ----------- Power Nuclear Core Engine Deuterium Engine Power Core Nuclear Core Propulsion Light Treads Treads Light Treads Leg Aluminum Leg Flight Unit VTOL Module Utility Small Storage Unit Device Improved Terrain Scanner Storage Small Storage Unit Processor Improved Terrain Scan Processor Hackware Hacking Suite Protection Improved Medium Armor Plating Weapon Precision Assault Rifle Energy Gun Medium Laser Energy Cannon Subdweller Beam Cannon Ballistic Gun Precision Assault Rifle Ballistic Cannon Gauss Cannon Launcher Heavy Missile Launcher Special Weapon Flamer Build | -11 -10 -10 -10 -8 -7 -7 -6 ------- Run | Yrd Mat Min Sub Mat Fac Sto Fac Slots Evolved 8 | . . . . 4 2 . 2 Power 2 | . . . . 1 1 . . Propulsion 2 | . . . . 1 1 . . Utility 2 | . . . . 1 . . 1 Weapon 2 | . . . . 1 . . 1 Parts Attached 88 | 6 3 5 17 18 9 12 18 Power 14 | 1 1 . 2 4 1 2 3 Engine 10 | 1 . . 2 3 1 . 3 Core 4 | . 1 . . 1 . 2 . Reactor . | . . . . . . . . Propulsion 19 | 2 . . 2 3 3 4 5 Treads 13 | 2 . . 2 2 3 4 . Leg 3 | . . . . 1 . . 2 Wheel . | . . . . . . . . Hover . | . . . . . . . . Flight 3 | . . . . . . . 3 Utility 20 | 1 1 1 4 6 . 3 4 Device 8 | . . . 2 3 . 1 2 Storage 4 | 1 . . 1 2 . . . Processor 1 | . . . . . . 1 . Hackware 1 | . . . . . . . 1 Protection 6 | . 1 1 1 1 . 1 1 Artifact . | . . . . . . . . Weapon 35 | 2 1 4 9 5 5 3 6 Energy Gun 7 | 2 . 1 2 . . 1 1 Energy Cannon 3 | . . . 1 1 1 . . Ballistic Gun 15 | . 1 2 4 3 1 1 3 Ballistic Cannon 7 | . . 1 . 1 2 1 2 Launcher 1 | . . . . . 1 . . Special Weapon 2 | . . . 2 . . . . Impact Weapon . | . . . . . . . . Slashing Weapon . | . . . . . . . . Piercing Weapon . | . . . . . . . . Special Melee Weapon . | . . . . . . . . Unidentified Prototypes 4 | . . . . 2 1 1 . Parts Lost 33 | . . 1 . 1 1 3 27 Power 6 | . . . . . . . 6 Propulsion 12 | . . . . . 1 2 9 Utility 6 | . . . . 1 . . 5 Weapon 9 | . . 1 . . . 1 7 Highest Loss Streak 13 | . . 1 . 1 1 2 13 To Critical Strikes . | . . . . . . . . Average Slot Usage (%) 88 | . 99 99 96 85 88 96 52 Engine 8 | . 8 . 9 12 9 12 3 Core 7 | . 5 14 4 3 7 9 7 Treads 23 | . 28 28 28 18 24 26 9 Device 5 | . . . 6 10 7 7 3 Storage 8 | . 14 14 8 7 7 7 2 Protection 8 | . 13 14 10 6 7 6 3 Energy Gun 6 | . 14 14 12 . . . 3 Energy Cannon 1 | . . . 1 4 . . . Ballistic Gun 10 | . 13 8 11 17 9 7 3 Ballistic Cannon 4 | . . 5 . 4 7 9 5 Launcher 1 | . . . . . 4 4 . Naked Turns 4 | . . . . . . . 4 Heaviest Build 64 | 12 21 22 34 42 55 55 64 Greatest Support 88 | 40 40 40 40 40 88 88 88 Greatest Overweight (x) 7 | . . . . 1 1 . 7 Average Overweight (x) . | . . . . . . . . Largest Inventory Capacity 8 | 8 8 8 8 8 8 8 8 Average Capacity 7 | 7 8 8 6 7 8 8 6 Most Carried 8 | 6 8 8 8 8 8 8 8 Average Carried 6 | 4 7 7 6 6 7 7 3 Final Capacity 8 | 8 8 8 5 8 8 8 5 Final Carried 8 | 6 8 8 5 8 8 8 . Class Distribution -------------------- 38% | Mutant 32% | Tank 10% | Scavenger-Tank 9% | Scavenger-Mutant 4% | Subdweller-Mutant Dominant Class ---------------- Mutant | -10/Materials Mutant | -10/Mines Mutant | -10/Subcaves Tank | -8/Materials Tank | -7/Factory Tank | -7/Storage Scavenger-Tank | -6/Factory Resources | -11 -10 -10 -10 -8 -7 -7 -6 ----------- Run | Yrd Mat Min Sub Mat Fac Sto Fac Matter Collected 2204 | 248 56 64 227 204 462 588 355 Remotely . | . . . . . . . . Salvage Created 2156 | . 90 73 152 314 310 829 388 Parts 125 | . 8 9 14 24 8 45 17 Haulers Intercepted 3 | . . . . . . 3 . Recyclers Shooed 2 | . . . . . . 2 . Parts Field Recycled . | . . . . . . . . Retrieved Matter . | . . . . . . . . Parts Self-Destructed . | . . . . . . . . Prevented . | . . . . . . . . Kills | -11 -10 -10 -10 -8 -7 -7 -6 ------- Run | Yrd Mat Min Sub Mat Fac Sto Fac Combat Hostiles Destroyed 50 | . 2 6 4 9 5 16 8 Melee 1 | . . . . . . . 1 Guns 25 | . 2 3 4 4 2 4 6 Cannons 16 | . . 3 . 5 2 6 . AOE 7 | . . . . . 1 6 . Classes Destroyed 16 | . 1 2 1 4 4 3 1 Worker 5 | . . . . 1 . 3 1 Builder 5 | . . . . . 1 3 1 Tunneler 1 | . . . . 1 . . . Hauler 3 | . . . . . . 3 . Recycler 3 | . . . . 1 1 1 . Mechanic 1 | . . . . . . 1 . Operator 2 | . . . . 1 . 1 . Watcher 4 | . . . . . 1 2 1 Swarmer 12 | . . 3 . 7 . . 2 Grunt 17 | . 2 . . 2 3 8 2 Brawler 2 | . . . . . 1 . 1 Sentry 7 | . . . . . 1 6 . Hunter 2 | . . . . . . . 2 Programmer 3 | . . . . . . 2 1 Subdweller 4 | . . . 4 . . . . Assembled 3 | . . 3 . . . . . Best Kill Streak 13 | . 2 3 1 8 3 13 3 Combat Bots Only 6 | . 2 3 1 6 3 4 3 Max Kills in Single Turn 3 | . 1 1 1 3 1 3 1 Gunslinging . | . . . . . . . . Exploded 2 | . . . . . 1 2 . Melee 1 | . . . . . . . 1 Uniques/NPCs Destroyed . | . . . . . . . . Combat | -11 -10 -10 -10 -8 -7 -7 -6 -------- Run | Yrd Mat Min Sub Mat Fac Sto Fac Hostile Shots Fired 472 | . 11 18 29 72 45 127 170 Missed 141 | . 4 3 14 17 17 40 46 Damage Taken 5294 | . 107 161 347 611 457 870 2741 Core 993 | . . . 22 26 84 10 851 Absorbed by Shields . | . . . . . . . . Core Remaining (%) 93 | 100 . . 91 95 . 86 . Volleys Fired 181 | . 8 9 27 32 18 37 50 Largest 4 | . 2 2 2 3 3 3 4 Hottest 177 | . 70 85 110 133 151 124 177 Shots Fired 394 | . 16 16 54 87 54 87 80 Gun 261 | . 16 11 54 58 22 37 63 Cannon 111 | . . 5 . 29 26 34 17 Launcher 22 | . . . . . 6 16 . Special . | . . . . . . . . Kinetic 255 | . 8 7 34 60 40 71 35 Thermal 117 | . 8 9 20 27 8 . 45 Explosive 22 | . . . . . 6 16 . Electromagnetic . | . . . . . . . . Robot Hit Streak 18 | . 8 3 6 9 18 9 8 Robot Miss Streak 9 | . 4 1 3 9 3 5 5 Penetration Max . | . . . . . . . . Secondary Targets 1 | . . . . . . . 1 Max Gunslinging Chain 1 | . . . . . . . 1 Shots Hit Robots 231 | . 10 10 37 30 37 54 53 Core Hits 131 | . 6 7 8 17 17 46 30 Critical Kills 4 | . 1 . 1 . . 2 . Critical Parts Destroyed . | . . . . . . . . Critical Strikes 18 | . 2 2 3 . 1 7 3 Burn 5 | . 1 1 1 . . . 2 Destroy 5 | . 1 . 2 . . 2 . Blast 8 | . . 1 . . 1 5 1 Melee Attacks . | . . . . . . . . Impact . | . . . . . . . . Slashing . | . . . . . . . . Piercing . | . . . . . . . . Sneak Attacks . | . . . . . . . . Combat Hostiles . | . . . . . . . . Follow-up Attacks . | . . . . . . . . Damage Inflicted 6397 | 9 122 142 467 750 953 2684 1270 Guns 2487 | . 122 86 467 329 299 487 697 Cannons 1832 | . . 56 . 415 446 592 323 Explosions 1933 | . . . . . 183 1563 187 Melee . | . . . . . . . . Ramming 145 | 9 . . . 6 25 42 63 Kinetic 2968 | . 60 81 241 329 570 1079 608 Thermal 1351 | . 62 61 226 415 175 . 412 Explosive 1933 | . . . . . 183 1563 187 Electromagnetic . | . . . . . . . . Impact . | . . . . . . . . Slashing . | . . . . . . . . Piercing . | . . . . . . . . Highest Corruption 6 | . . . . . . . 6 Average Corruption 5 | . . . . . . . 5 Corruption Purged . | . . . . . . . . Corruption Blocked . | . . . . . . . . Effects 15 | . . . . . . . 15 Message Errors 3 | . . . . . . . 3 Matter Fused 4 | . . . . . . . 4 Energy Discharges 1 | . . . . . . . 1 Parts Rejected 1 | . . . . . . . 1 Parts Fused 1 | . . . . . . . 1 Data Loss (minor) 1 | . . . . . . . 1 Data Loss (major) 3 | . . . . . . . 3 Weapon Failures 1 | . . . . . . . 1 Overload Shots . | . . . . . . . . Overflow Damage 142 | . . . . 6 21 85 30 Projectiles 24 | . . . . 6 9 9 . Explosions 118 | . . . . . 12 76 30 Melee . | . . . . . . . . Knockbacks 8 | . . . . . 2 4 2 Impact 1 | . . . . . . . 1 Kinetic 6 | . . . . . 2 3 1 Secondary 1 | . . . . . . 1 . Self-Inflicted Damage 388 | . . . . . 48 48 292 Shots 7 | . . . . . 1 2 4 Rammed 32 | 2 . . . 2 3 3 22 Targets Rammed 39 | 2 . . . 2 4 6 25 Kicked 2 | . . . . . . . 2 Crushed 5 | . . . . . 1 3 1 Highest Temperature 562 | . 153 99 4 400 552 562 561 Average Temperature 138 | . 57 44 3 154 173 127 183 Received Heat Transfer 1647 | . 75 . 69 216 156 312 819 Effects 43 | . . . . 7 6 18 12 Shutdowns 21 | . . . . 3 4 8 6 Energy Bleed 2 | . . . . . 1 . 1 Interference 4 | . . . . . . 2 2 Short Circuit 5 | . . . . 2 1 1 1 Damage (minor) 7 | . . . . 2 . 3 2 Damage (major) 4 | . . . . . . 4 . Siege Activations . | . . . . . . . . Robots Corrupted . | . . . . . . . . Combat Hostiles . | . . . . . . . . Parts Fried . | . . . . . . . . Impact Corruptions . | . . . . . . . . Robots Melted 1 | . . . . . . . 1 Combat Hostiles 1 | . . . . . . . 1 Parts Melted 7 | . . . 1 2 1 . 3 Heat Transferred 2974 | . 259 259 569 555 259 . 1073 Parts Sabotaged . | . . . . . . . . Parts Stolen . | . . . . . . . . Parts Stripped . | . . . . . . . . Power Chain Reactions . | . . . . . . . . Alert | -11 -10 -10 -10 -8 -7 -7 -6 ------- Run | Yrd Mat Min Sub Mat Fac Sto Fac Peak Influence 652 | . 80 91 . 279 147 652 310 Initial 294 | . . 31 . . 35 61 294 Average 170 | . 30 36 . 147 76 441 229 Maximum Alert Level 2 | . . . . 1 . 2 1 Low Security (%) 66 | 100 100 100 . 64 100 17 25 Level 1 21 | . . . . 35 . 14 74 Level 2 12 | . . . . . . 68 . Level 3 . | . . . . . . . . Level 4 . | . . . . . . . . Level 5 . | . . . . . . . . High Security . | . . . . . . . . Max Security . | . . . . . . . . Squads Dispatched 11 | . 1 . . . 1 2 7 Investigation 2 | . . . . . . . 2 Extermination 4 | . . . . . 1 1 2 Reinforcement 4 | . 1 . . . . 1 2 Assault . | . . . . . . . . Garrison 1 | . . . . . . . 1 Intercept . | . . . . . . . . Searches Triggered . | . . . . . . . . Construction Impeded 1 | . . . . . . 1 . Haulers Reinforced . | . . . . . . . . Active Scanning Responses . | . . . . . . . . Cargo Convoy Interrupts . | . . . . . . . . Stealth | -11 -10 -10 -10 -8 -7 -7 -6 --------- Run | Yrd Mat Min Sub Mat Fac Sto Fac Distress Signals 6 | . . 1 . . . 3 2 Communications Jammed 1 | . . . . . . 1 . Distress Signals 1 | . . . . . . 1 . Times Spotted 77 | . 6 7 4 12 7 23 18 Peak Tracking Total 5 | . 2 3 1 5 3 5 5 Tactical Retreats 4 | . 1 1 . 1 . . 1 Traps | -11 -10 -10 -10 -8 -7 -7 -6 ------- Run | Yrd Mat Min Sub Mat Fac Sto Fac Traps Triggered 4 | . . . . . 1 . 3 Indirectly . | . . . . . . . . Trap Hack Attempts . | . . . . . . . . Triggered . | . . . . . . . . Disarmed . | . . . . . . . . Reprogrammed . | . . . . . . . . Reused . | . . . . . . . . Traps Extracted . | . . . . . . . . Installed . | . . . . . . . . Triggered . | . . . . . . . . Machines | -11 -10 -10 -10 -8 -7 -7 -6 ---------- Run | Yrd Mat Min Sub Mat Fac Sto Fac Machines Disabled 11 | . . . . 1 2 4 4 Max in Single Turn 4 | . . . . 1 1 1 4 Machines Repaired . | . . . . . . . . Machines Dismantled . | . . . . . . . . Machines Sabotaged . | . . . . . . . . Overloaded Fab Kills . | . . . . . . . . Hacking | -11 -10 -10 -10 -8 -7 -7 -6 --------- Run | Yrd Mat Min Sub Mat Fac Sto Fac Machines Accessed 9 | . . . . 3 1 2 3 Terminals 6 | . . . . 2 1 1 2 Fabricators . | . . . . . . . . Repair Stations 1 | . . . . . . . 1 Recycling Units 1 | . . . . . . 1 . Scanalyzers 1 | . . . . 1 . . . Garrison Access . | . . . . . . . . Total Hacks 17 | . . . . 5 2 4 6 Successful 8 | . . . . 4 2 1 1 Failed 9 | . . . . 1 . 3 5 Catastrophic 2 | . . . . . . . 2 Database Lockouts . | . . . . . . . . Manual . | . . . . . . . . Terminals 12 | . . . . 4 2 2 4 Fabricators . | . . . . . . . . Repair Stations 2 | . . . . . . . 2 Recycling Units 2 | . . . . . . 2 . Scanalyzers 1 | . . . . 1 . . . Garrison Access . | . . . . . . . . Terminal Hacks 5 | . . . . 3 2 . . Record 4 | . . . . 3 1 . . Emergency Access Points 1 | . . . . . 1 . . Fabricator Hacks . | . . . . . . . . Repair Station Hacks 1 | . . . . . . . 1 Refit 1 | . . . . . . . 1 Recycling Unit Hacks 1 | . . . . . . 1 . Retrieve Components 1 | . . . . . . 1 . Scanalyzer 1 | . . . . 1 . . . Insert Component 1 | . . . . 1 . . . Garrison Access Hacks . | . . . . . . . . Unauthorized Hacks . | . . . . . . . . Terminals . | . . . . . . . . Fabricators . | . . . . . . . . Repair Stations . | . . . . . . . . Recycling Units . | . . . . . . . . Scanalyzers . | . . . . . . . . Garrison Access . | . . . . . . . . Data Cores Recovered 1 | . . . . . . 1 . Used . | . . . . . . . . Hacking Detections 7 | . . . . 2 . 2 3 Full Trace Events 3 | . . . . 1 . . 2 Feedback Events . | . . . . . . . . Feedback Blocked . | . . . . . . . . Robot Schematics Acquired . | . . . . . . . . Robots Built . | . . . . . . . . Authchips . | . . . . . . . . Time . | . . . . . . . . Total Robot Build Rating . | . . . . . . . . Part Schematics Acquired . | . . . . . . . . Parts Built . | . . . . . . . . Authchips . | . . . . . . . . Time . | . . . . . . . . Total Part Build Rating . | . . . . . . . . Parts Repaired . | . . . . . . . . Time . | . . . . . . . . Parts Recycled . | . . . . . . . . Recycled Matter . | . . . . . . . . Retrieved Matter . | . . . . . . . . Retrieved Components 8 | . . . . . . 8 . Parts Scanalyzed . | . . . . . . . . Part Schematics Acquired . | . . . . . . . . Parts Damaged . | . . . . . . . . Bothacking | -11 -10 -10 -10 -8 -7 -7 -6 ------------ Run | Yrd Mat Min Sub Mat Fac Sto Fac Used RIF Installer . | . . . . . . . . Robots Hacked . | . . . . . . . . Non-combat . | . . . . . . . . Combat . | . . . . . . . . Robot Hacks Applied . | . . . . . . . . Relay Couplers Released . | . . . . . . . . Fabnet Peak Effective % . | . . . . . . . . Robots Rewired . | . . . . . . . . Allies Hacked . | . . . . . . . . Hacks Repelled . | . . . . . . . . Allies | -11 -10 -10 -10 -8 -7 -7 -6 -------- Run | Yrd Mat Min Sub Mat Fac Sto Fac Total Allies . | . . . . . . . . Largest Group . | . . . . . . . . Highest-Rated Group . | . . . . . . . . Highest-Rated Ally . | . . . . . . . . Total Orders . | . . . . . . . . Ally Attacks . | . . . . . . . . Total Damage . | . . . . . . . . Kills . | . . . . . . . . Allies Corrupted . | . . . . . . . . Allies Melted . | . . . . . . . . Intel | -11 -10 -10 -10 -8 -7 -7 -6 ------- Run | Yrd Mat Min Sub Mat Fac Sto Fac Robot Analysis Total . | . . . . . . . . Derelict Logs Recovered 3 | . . 2 1 . . . . Drone Launches . | . . . . . . . . Drone Recoveries . | . . . . . . . . Exploration | -11 -10 -10 -10 -8 -7 -7 -6 ------------- Run | Yrd Mat Min Sub Mat Fac Sto Fac Turns Passed 4850 | 105 237 582 1257 664 754 669 582 Spaces Moved 2395 | 66 128 165 705 289 413 321 308 Core 58 | 18 . . . . . . 40 Treads 2186 | 48 128 165 705 289 413 321 117 Legs 114 | . . . . . . . 114 Wheels . | . . . . . . . . Hover . | . . . . . . . . Flight 37 | . . . . . . . 37 Fastest Speed 30 | 50 160 160 160 160 160 160 30 Average Speed 158 | 130 160 160 160 182 162 160 126 Slowest Speed 400 | 160 160 160 160 250 250 160 400 Overloaded Moves . | . . . . . . . . Propulsion Burnouts . | . . . . . . . . Robots Hopped . | . . . . . . . . Cave-ins Triggered . | . . . . . . . . Exploration Rate (%) 26 | 5 26 41 40 22 10 54 10 Regions Visited 7 Branch Regions 3 Pre-discovered Areas . | . . . . . . . . Known Exits Taken . | . . . . . . . . Unknown Exits Taken 7 | 1 1 1 1 1 1 1 . Scrap Searched 3 | . . 1 2 . . . . Spaces Dug . | . . . . . . . . Terrain Destroyed 328 | . . . . 11 82 201 34 Melee . | . . . . . . . . Projectile 36 | . . . . 11 7 17 1 AOE 292 | . . . . . 75 184 33 Terrain Rammed . | . . . . . . . . Walls Destroyed . | . . . . . . . . Machines Disabled . | . . . . . . . . Actions | -11 -10 -10 -10 -8 -7 -7 -6 --------- Run | Yrd Mat Min Sub Mat Fac Sto Fac Total 3116 | 84 145 468 788 371 453 395 412 Wait 289 | . . 281 2 2 . 3 1 Move 2389 | 66 127 164 704 288 412 320 308 Hop . | . . . . . . . . Pick Up 79 | 11 5 5 16 17 6 9 10 Fast Attach 11 | 1 . . 6 1 2 1 . Attach 41 | 5 1 2 1 9 3 4 16 Detach 3 | . . . 1 2 . . . Swap 36 | . 2 3 10 8 4 7 2 Drop 48 | . 2 4 20 10 4 8 . Fire 181 | . 8 9 27 32 18 37 50 Melee . | . . . . . . . . Ram 22 | . . . . . . . 22 Kick 2 | . . . . . . . 2 Crush 14 | 1 . . . 2 4 6 1 Escape Stasis . | . . . . . . . . Rewire . | . . . . . . . . Trap . | . . . . . . . . Miscellaneous 1 | . . . 1 . . . . Route ------- -11/Scrapyard -10/Materials -10/Mines (discovered 2 exits: [*Mat] / [*Sub]) -10/Subcaves -8/Materials -7/Factory -7/Storage -6/Factory History --------- Turn | Location | Event 11 | -11/Scrapyard | Discovered new exit (range 15) 106 | -11/Scrapyard | Entered Materials 303 | -10/Materials | Build established: Mutant 315 | -10/Materials | Discovered new exit (range 16) 343 | -10/Materials | Entered Mines 344 | -10/Mines | Assembled infested the area 397 | -10/Mines | Met a Derelict bent on vengeance 478 | -10/Mines | Discovered new exit (range 5) 919 | -10/Mines | Discovered new exit (range 4) 925 | -10/Mines | Entered Subcaves 1037 | -10/Subcaves | Learned Materials non-interactive machine intel 1801 | -10/Subcaves | Shifting Twisted Machinery released Mak. Light Armor Plating 1803 | -10/Subcaves | Shifting Twisted Machinery released Mak. System Restoration Module 2173 | -10/Subcaves | Discovered new exit (range 7) 2182 | -10/Subcaves | Entered Materials 2182 | -8/Materials | Evolved 4 slots: Power x1, Propulsion x1, Utility x1, Weapon x1 2183 | -8/Materials | Loaded intel: 42 non-interactive machine locations 2821 | -8/Materials | Discovered new exit (range 11) 2846 | -8/Materials | Entered Factory 2846 | -7/Factory | Evolved 2 slots: Power x1, Propulsion x1 2867 | -7/Factory | Build established: Tank 3358 | -7/Factory | Discovered new exit (range 6) 3600 | -7/Factory | Entered Storage 4249 | -7/Storage | Discovered new exit (range 7) 4269 | -7/Storage | Entered Factory 4269 | -6/Factory | Evolved 2 slots: Utility x1, Weapon x1 4446 | -6/Factory | Build established: Scavenger-Tank 4588 | -6/Factory | Lost 13 parts (3p4n2u4w) 4700 | -6/Factory | Core integrity fell below 50% 4756 | -6/Factory | Garrison activated, responded to threat 4801 | -6/Factory | Core integrity fell below 20% 4851 | -6/Factory | Destroyed by S-27 Virus with Autogun Last Messages --------------- Replicator. 04836_ VTOL Module destroyed. 04836_ Slammed into S-27 Virus. 04840_ Triggered Heavy Explosive Trap. 04840_ An explosion rips through the floor. 04840_ VTOL Module destroyed. 04840_ Matter Pump disabled. 04840_ Subcomponent Replicator disabled. 04840_ S-27 Virus destroyed. 04840_ K-01 Serf destroyed. 04840_ Subcomponent Replicator disabled. 04845_ Triggered Heavy Explosive Trap. 04845_ An explosion rips through the floor. 04845_ Nuclear Pulse Thruster destroyed. 04845_ Subcomponent Replicator disabled. 04845_ Autogun destroyed. 04846_ U-05 Engineer lays Concrete. 04847_ R-10 Processor collects Lgt. Ion Engine. 04848_ K-01 Serf collects debris. 04851_ U-05 Engineer lays Concrete. Map ----- +----------------------------------------------------+ | ?????????????????????????? #?????????????????? | | ?????????????????????????? #?????????????????? | | ?????????????????????????? #?????????????????? | | ?????????????????????????? #?????????????????? | | ????????????? ???????????? #?????????????????? | | ????????????# ???????????# #?????????????????? | | ????????????# *??????????# #?????????????????? | | ????#???????# ??????????# #?????????????????? | | ????# #?????# ??????????# #?????????????????? | | #####+####### ??????????# #?????????????????? | | % ## ??????????+ +?????????????????? | | """"""" ## ??????????# #?????????????????? | | """"""" ## ??????????# #?????????????????? | | """"""" ## ############ #?????????????????? | | """"""" " """ * #?????????????????? | | # %! #?????????????????? | | " "" "" #?????????????????? | | # "" "" "" #?????????????????? | | "" # """ """ """ #?????????????????? | | """# """ """ """ #?????????????????? | | S"#u " """ #?????????????????? | | # % #?????????????????? | | ########/### "" s[s s "" #?????????????????? | | "" " % "" +?????????????????? | | "" " """ #?????????????????? | | """ """ "" @""" #?????????????????? | | """ """ """ """ #?????????????????? | | """ """ #?????????????????? | | "" " "" #?????????????????? | | "" " "" #?????????????????? | | "" "" "" """ #?????????????????? | | ""T"" """w""" """ """ #?????????????????? | | """"" """ """k""" """ #?????????????????? | | ?#?????????????????? | | ???????????????????? | | # #### ############### ! ???????????????????? | | # #??# #?????????????? ???????????????????? | | # #??# #?????????????? ???????????????????? | | # #??# #?????????????? ???????????????????? | | # #??# #?????????????? ????????????????????? | | # #??# #?????????????? ????????????????????? | | #+???? #?????????????? ????????????????????? | | ???????? #?????????????? ??????????????????????? | | ?????????? ??????????????????????????????????????? | | ?????????????????????????????????????????????????? | | ?????????????????????????????????????????????????? | | ?????????????????????????????????????????????????? | | ?????????????????????????????????????????????????? | | ?????????????????????????????????????????????????? | | ?????????????????????????????????????????????????? | +----------------------------------------------------+ Best States ------------- Heat Dissipation 56 Energy Generation 34 Energy Capacity 595 Matter Stores 300 Matter Capacity 300 Sight Range 21 Terrain Scan Range 16 Terrain Scan Density 110 Jamming Range 12 Armor Coverage 800 Melee Speed Boost 20 Evasion (%) 64 Recoil Reduction 4 Offensive Hacking 10 Item Schematics ----------------- None Robot Schematics ------------------ None Fabricated ------------ Nothing Alien Tech Used ----------------- None Achievements -------------- I Survived The Infestation Safety First Serviceable Loadout Challenges ------------ None Game ------ Seed GunShockDriver Manual? 0 Play Time 01:04:47 Cumulative 4.2 hours Start 2024.05.12 @ 01:20:37 End 2024.05.12 @ 03:30:19 Sessions 6 Manual Loads 0 Difficulty Rogue Special Mode None Game No. 5 Rogue 5 Adventurer 0 Explorer 0 Win Type - Total 0 Types 0/0/0/0/0/0/0/0/0 Lore% 4 Gallery% 10 Achievement% 9 Wizard Run 0 Options --------- Layout 2 ASCII 0 Keyboard 0 Movement Numpad Keybinds 0 Fullscreen 1 Font 24/Smallcaps Map View 50x44 Zoom Use 0% Tactical HUD 1 Map Filters NONE Filters NONE Steam 1 RUN: 05e6e54c-deb9-47b8-9ca0-049a04908024